[Event "*** Titled Tuesday 3|2 Blitz"]
[Site "Chess.com"]
[Date "2015.02.24"]
[Round "6"]
[White "stepanosinovsky"]
[Black "gawk"]
[Result "1-0"]
[WhiteElo "2240"]
[BlackElo "2050"]
[TimeControl "180+2"]
[EndTime "12:15:28 PST"]
[Termination "stepanosinovsky won by resignation"]

1. Nf3 {[%clk 0:03:00]} 1... Nf6 {[%clk 0:02:53.2]} 2. g3 {[%clk 0:03:00.6]}
2... c5 {[%clk 0:02:51.2]} 3. Bg2 {[%clk 0:03:02.5]} 3... Nc6 {[%clk 0:02:50.9]}
4. O-O {[%clk 0:03:04.4]} 4... e6 {[%clk 0:02:50.2]} 5. d3 {[%clk 0:03:04.5]}
5... d5 {[%clk 0:02:50.7]} 6. Nbd2 {[%clk 0:03:06.1]} 6... Be7 {[%clk
0:02:51.7]} 7. e4 {[%clk 0:03:07.8]} 7... O-O {[%clk 0:02:53.2]} 8. e5 {[%clk
0:03:08]} 8... Nd7 {[%clk 0:02:53.8]} 9. Re1 {[%clk 0:03:09.6]} 9... b5 {[%clk
0:02:49.9]} 10. h4 {[%clk 0:03:08.4]} 10... a5 {[%clk 0:02:44.4]} 11. Nf1 {[%clk
0:03:08.6]} 11... b4 {[%clk 0:02:42]} 12. h5 {[%clk 0:03:09]} 12... Ba6 {[%clk
0:02:30.7]} 13. h6 {[%clk 0:03:09.5]} 13... g6 {[%clk 0:02:31.6]} 14. N1h2
{[%clk 0:03:07.1]} 14... a4 {[%clk 0:02:32.8]} 15. Ng4 {[%clk 0:03:05.9]} 15...
Nb6 {[%clk 0:02:09]} 16. Bf4 {[%clk 0:02:38.2]} 16... Nd4 {[%clk 0:02:06.5]} 17.
Nxd4 {[%clk 0:02:36.5]} 17... cxd4 {[%clk 0:02:07.6]} 18. Qd2 {[%clk 0:02:37.6]}
18... Rc8 {[%clk 0:02:08]} 19. Nf6+ {[%clk 0:02:33.3]} 19... Kh8 {[%clk
0:02:08.7]} 20. Bg5 {[%clk 0:02:31.3]} 20... Qc7 {[%clk 0:02:04.3]} 21. Re2
{[%clk 0:02:31.2]} 21... Nd7 {[%clk 0:01:51.7]} 22. Nxh7 {[%clk 0:02:18.5]}
22... Bxg5 {[%clk 0:00:51.2]} 23. Nxg5 {[%clk 0:02:16.1]} 23... Qb8 {[%clk
0:00:47.1]} 24. Qf4 {[%clk 0:02:10.3]} 1-0

[Event "*** Titled Tuesday 3|2 Blitz"]
[Site "Chess.com"]
[Date "2015.02.24"]
[Round "6"]
[White "Colombiano07"]
[Black "Hafez_Bakr"]
[Result "1-0"]
[WhiteElo "2009"]
[BlackElo "1818"]
[TimeControl "180+2"]
[EndTime "12:16:00 PST"]
[Termination "Colombiano07 won by resignation"]

1. e4 {[%clk 0:02:39.8]} 1... c5 {[%clk 0:02:57.4]} 2. Nf3 {[%clk 0:02:40.2]}
2... d6 {[%clk 0:02:58.8]} 3. d4 {[%clk 0:02:39.9]} 3... cxd4 {[%clk 0:03:00.7]}
4. Nxd4 {[%clk 0:02:41.8]} 4... Nf6 {[%clk 0:03:02.1]} 5. Nc3 {[%clk 0:02:43.5]}
5... a6 {[%clk 0:03:04]} 6. Bg5 {[%clk 0:02:44.3]} 6... e6 {[%clk 0:03:05.5]} 7.
Qf3 {[%clk 0:02:46]} 7... Be7 {[%clk 0:03:07]} 8. O-O-O {[%clk 0:02:47.5]} 8...
Qc7 {[%clk 0:03:08]} 9. Qg3 {[%clk 0:02:48.2]} 9... Nbd7 {[%clk 0:03:07.6]} 10.
Kb1 {[%clk 0:02:49]} 10... Ne5 {[%clk 0:02:47.3]} 11. f4 {[%clk 0:02:49]} 11...
Nc4 {[%clk 0:02:43.1]} 12. Bxc4 {[%clk 0:02:49.2]} 12... Qxc4 {[%clk 0:02:43.5]}
13. e5 {[%clk 0:02:51.1]} 13... dxe5 {[%clk 0:02:44.2]} 14. fxe5 {[%clk
0:02:53]} 14... Nd5 {[%clk 0:02:43.2]} 15. Nxd5 {[%clk 0:02:41.7]} 15... Bxg5
{[%clk 0:02:29.9]} 16. Nb6 {[%clk 0:02:34.7]} 16... Qc5 {[%clk 0:02:14.4]} 17.
Nxa8 {[%clk 0:02:20.2]} 17... Bh6 {[%clk 0:02:01.8]} 18. Nb3 {[%clk 0:01:55.6]}
18... Qe7 {[%clk 0:01:50.7]} 19. Nb6 {[%clk 0:01:46.3]} 19... O-O {[%clk
0:01:47]} 20. Nxc8 {[%clk 0:01:47.3]} 20... Rxc8 {[%clk 0:01:47]} 21. Rd6 {[%clk
0:01:49]} 21... Qc7 {[%clk 0:01:42.7]} 22. Qd3 {[%clk 0:01:43]} 22... g6 {[%clk
0:01:42.1]} 23. Rd1 {[%clk 0:01:25.5]} 23... Bg5 {[%clk 0:01:28.9]} 24. g3
{[%clk 0:01:18.9]} 24... Bh6 {[%clk 0:01:22.5]} 25. Rd8+ {[%clk 0:01:10.7]}
25... Kg7 {[%clk 0:01:16.6]} 26. Rxc8 {[%clk 0:01:04.9]} 26... Qxc8 {[%clk
0:01:16.3]} 27. Qd8 {[%clk 0:01:06.6]} 1-0

[Event "*** Titled Tuesday 3|2 Blitz"]
[Site "Chess.com"]
[Date "2015.02.24"]
[Round "6"]
[White "Schemato"]
[Black "juniortay"]
[Result "1-0"]
[WhiteElo "2064"]
[BlackElo "2194"]
[TimeControl "180+2"]
[EndTime "12:16:25 PST"]
[Termination "Schemato won on time"]

1. c4 {[%clk 0:03:00]} 1... g6 {[%clk 0:02:55.8]} 2. Nc3 {[%clk 0:02:59.6]} 2...
Bg7 {[%clk 0:02:57.7]} 3. g3 {[%clk 0:03:01]} 3... d6 {[%clk 0:02:58.8]} 4. Bg2
{[%clk 0:03:02.2]} 4... Nf6 {[%clk 0:03:00.7]} 5. e4 {[%clk 0:03:03]} 5... O-O
{[%clk 0:03:02.6]} 6. Nge2 {[%clk 0:03:04.3]} 6... c5 {[%clk 0:03:03.8]} 7. O-O
{[%clk 0:03:05.2]} 7... Nc6 {[%clk 0:03:05.4]} 8. d3 {[%clk 0:03:06.6]} 8... a6
{[%clk 0:03:05.1]} 9. h3 {[%clk 0:03:07.1]} 9... Rb8 {[%clk 0:03:06.4]} 10. a4
{[%clk 0:03:08.7]} 10... Ne8 {[%clk 0:03:07]} 11. Be3 {[%clk 0:03:09.7]} 11...
Nc7 {[%clk 0:03:05.9]} 12. d4 {[%clk 0:03:10.9]} 12... Na5 {[%clk 0:02:40]} 13.
b3 {[%clk 0:03:00.6]} 13... cxd4 {[%clk 0:02:13.9]} 14. Bxd4 {[%clk 0:03:00.5]}
14... Ne6 {[%clk 0:02:15.5]} 15. Bxg7 {[%clk 0:03:00]} 15... Kxg7 {[%clk
0:02:17.4]} 16. Rb1 {[%clk 0:02:47.8]} 16... Bd7 {[%clk 0:01:44.7]} 17. Nd4
{[%clk 0:02:45.7]} 17... Nxd4 {[%clk 0:01:14.8]} 18. Qxd4+ {[%clk 0:02:46]}
18... f6 {[%clk 0:01:11.8]} 19. Qd3 {[%clk 0:02:29.1]} 19... b5 {[%clk 0:00:54]}
20. cxb5 {[%clk 0:02:09.8]} 20... axb5 {[%clk 0:00:54.9]} 21. b4 {[%clk
0:02:10.7]} 21... Nc4 {[%clk 0:00:47.9]} 22. a5 {[%clk 0:02:12.1]} 22... Qc8
{[%clk 0:00:32.7]} 23. Kh2 {[%clk 0:02:02.6]} 23... Be6 {[%clk 0:00:19.3]} 24.
Nd5 {[%clk 0:01:57.7]} 24... Qd7 {[%clk 0:00:02.8]} 25. Rfc1 {[%clk 0:01:46.7]}
25... Rfc8 {[%clk 0:00:03.1]} 26. Qd4 {[%clk 0:01:43.6]} 1-0

[Event "*** Titled Tuesday 3|2 Blitz"]
[Site "Chess.com"]
[Date "2015.02.24"]
[Round "6"]
[White "Cryptochess"]
[Black "VerdeNotte"]
[Result "0-1"]
[WhiteElo "2381"]
[BlackElo "2542"]
[TimeControl "180+2"]
[EndTime "12:16:26 PST"]
[Termination "VerdeNotte won by resignation"]

1. e4 {[%clk 0:03:00]} 1... c5 {[%clk 0:02:58.8]} 2. Nc3 {[%clk 0:03:00.5]} 2...
g6 {[%clk 0:02:58.9]} 3. g3 {[%clk 0:03:01.7]} 3... Bg7 {[%clk 0:02:59.8]} 4.
Bg2 {[%clk 0:03:03.3]} 4... Nc6 {[%clk 0:03:01.2]} 5. d3 {[%clk 0:03:02.5]} 5...
Rb8 {[%clk 0:03:02.2]} 6. Be3 {[%clk 0:03:03.5]} 6... d6 {[%clk 0:03:02.7]} 7.
Nf3 {[%clk 0:03:01.5]} 7... b5 {[%clk 0:03:00.8]} 8. Qd2 {[%clk 0:03:00.9]} 8...
Nd4 {[%clk 0:02:53.6]} 9. O-O {[%clk 0:02:43.6]} 9... Bg4 {[%clk 0:02:53.4]} 10.
Bxd4 {[%clk 0:02:18.2]} 10... cxd4 {[%clk 0:02:52.1]} 11. Ne2 {[%clk 0:02:14]}
11... e5 {[%clk 0:02:50.9]} 12. h3 {[%clk 0:02:10.9]} 12... Bd7 {[%clk
0:02:47.1]} 13. c3 {[%clk 0:02:07.3]} 13... dxc3 {[%clk 0:02:48.2]} 14. bxc3
{[%clk 0:01:59.9]} 14... Nf6 {[%clk 0:02:49.3]} 15. Ne1 {[%clk 0:01:42.7]} 15...
Qb6 {[%clk 0:02:43.9]} 16. Nc2 {[%clk 0:01:37.7]} 16... h5 {[%clk 0:02:40.4]}
17. Ne3 {[%clk 0:01:35.1]} 17... h4 {[%clk 0:02:40.5]} 18. d4 {[%clk 0:01:11.3]}
18... hxg3 {[%clk 0:02:40.4]} 19. fxg3 {[%clk 0:01:08.3]} 19... Bxh3 {[%clk
0:02:36.5]} 20. Bxh3 {[%clk 0:01:07.3]} 20... Rxh3 {[%clk 0:02:38.4]} 21. Kg2
{[%clk 0:01:08.3]} 21... Nxe4 {[%clk 0:02:33.5]} 22. Qd3 {[%clk 0:01:06]} 22...
Ng5 {[%clk 0:02:33.7]} 23. dxe5 {[%clk 0:00:58.5]} 23... Bxe5 {[%clk 0:02:31.3]}
24. Nd5 {[%clk 0:00:50.6]} 24... Qc6 {[%clk 0:02:30.6]} 25. Nf4 {[%clk
0:00:41.8]} 25... Rh8 {[%clk 0:02:28]} 26. Rad1 {[%clk 0:00:30.4]} 26... Kd7
{[%clk 0:02:25.6]} 27. Nxg6 {[%clk 0:00:19.9]} 27... fxg6 {[%clk 0:02:26.5]} 28.
Qxg6 {[%clk 0:00:21.8]} 28... Rbg8 {[%clk 0:02:25.2]} 29. Qf5+ {[%clk
0:00:15.1]} 29... Kd8 {[%clk 0:02:25.6]} 30. Kg1 {[%clk 0:00:07.1]} 30... Qc5+
{[%clk 0:02:17.2]} 31. Kg2 {[%clk 0:00:05.8]} 31... Qc4 {[%clk 0:02:17.7]} 32.
Ne3 {[%clk 0:00:03.3]} 32... Qe4+ {[%clk 0:02:17.2]} 33. Qxe4 {[%clk 0:00:04.5]}
33... Nxe4 {[%clk 0:02:19.1]} 34. Nf5 {[%clk 0:00:05.2]} 34... Nxg3 {[%clk
0:02:19.9]} 35. Nxd6 {[%clk 0:00:06.5]} 35... Nxf1+ {[%clk 0:02:20.5]} 0-1

[Event "*** Titled Tuesday 3|2 Blitz"]
[Site "Chess.com"]
[Date "2015.02.24"]
[Round "6"]
[White "oggy1984"]
[Black "GulamaliRises"]
[Result "0-1"]
[WhiteElo "2200"]
[BlackElo "2328"]
[TimeControl "180+2"]
[EndTime "12:17:14 PST"]
[Termination "GulamaliRises won on time"]

1. e4 {[%clk 0:03:00]} 1... c5 {[%clk 0:02:59.3]} 2. Nf3 {[%clk 0:03:00.3]} 2...
d6 {[%clk 0:02:59.9]} 3. d4 {[%clk 0:03:01.3]} 3... cxd4 {[%clk 0:03:01.8]} 4.
Nxd4 {[%clk 0:03:03.2]} 4... Nf6 {[%clk 0:03:03.7]} 5. Nc3 {[%clk 0:03:03.9]}
5... a6 {[%clk 0:03:04.6]} 6. Be3 {[%clk 0:03:03.7]} 6... e6 {[%clk 0:03:04.5]}
7. f3 {[%clk 0:03:03.7]} 7... b5 {[%clk 0:03:05.3]} 8. Qd2 {[%clk 0:03:04.2]}
8... Bb7 {[%clk 0:02:59.1]} 9. g4 {[%clk 0:03:00]} 9... Nfd7 {[%clk 0:02:59]}
10. O-O-O {[%clk 0:02:56.5]} 10... Nb6 {[%clk 0:02:59.4]} 11. a3 {[%clk
0:02:36.9]} 11... N8d7 {[%clk 0:02:59.4]} 12. h4 {[%clk 0:02:20.5]} 12... Rc8
{[%clk 0:02:58.9]} 13. g5 {[%clk 0:02:16.9]} 13... Ne5 {[%clk 0:02:59.1]} 14.
Qe1 {[%clk 0:02:08.9]} 14... Nbc4 {[%clk 0:02:54.2]} 15. Bxc4 {[%clk 0:01:52.2]}
15... Nxc4 {[%clk 0:02:56.1]} 16. h5 {[%clk 0:01:46.1]} 16... Qc7 {[%clk
0:02:30.9]} 17. Rg1 {[%clk 0:01:21.9]} 17... Nxa3 {[%clk 0:02:27]} 18. g6 {[%clk
0:01:18.9]} 18... hxg6 {[%clk 0:02:26.4]} 19. hxg6 {[%clk 0:01:19.3]} 19... Nc4
{[%clk 0:02:01.7]} 20. gxf7+ {[%clk 0:01:19.7]} 20... Kxf7 {[%clk 0:02:02]} 21.
Rd3 {[%clk 0:00:42.3]} 21... b4 {[%clk 0:01:53.5]} 22. Na4 {[%clk 0:00:20.7]}
22... Nxe3 {[%clk 0:01:27.9]} 23. Qxe3 {[%clk 0:00:17]} 23... e5 {[%clk
0:01:28.4]} 24. Qg5 {[%clk 0:00:14.6]} 24... exd4 {[%clk 0:01:24.6]} 25. Rd2
{[%clk 0:00:10.4]} 25... Rh6 {[%clk 0:01:00.2]} 0-1

[Event "*** Titled Tuesday 3|2 Blitz"]
[Site "Chess.com"]
[Date "2015.02.24"]
[Round "6"]
[White "LADIESGET2KNOWME"]
[Black "igorkovalenko"]
[Result "0-1"]
[WhiteElo "2294"]
[BlackElo "2458"]
[TimeControl "180+2"]
[EndTime "12:17:34 PST"]
[Termination "igorkovalenko won by resignation"]

1. d4 {[%clk 0:03:00]} 1... Nf6 {[%clk 0:02:58.6]} 2. Nc3 {[%clk 0:03:01.4]}
2... d5 {[%clk 0:02:59.2]} 3. Bg5 {[%clk 0:03:02.6]} 3... Nbd7 {[%clk 0:02:58]}
4. Nf3 {[%clk 0:03:02.1]} 4... Ne4 {[%clk 0:02:52.8]} 5. Nxe4 {[%clk 0:03:00.3]}
5... dxe4 {[%clk 0:02:53.9]} 6. Nd2 {[%clk 0:03:01.9]} 6... h6 {[%clk
0:02:43.3]} 7. Bh4 {[%clk 0:03:02.2]} 7... g5 {[%clk 0:02:34.2]} 8. Bg3 {[%clk
0:03:02]} 8... Nf6 {[%clk 0:02:35.8]} 9. e3 {[%clk 0:02:56.9]} 9... Bg7 {[%clk
0:02:34.7]} 10. Be2 {[%clk 0:02:47.5]} 10... O-O {[%clk 0:02:33.7]} 11. c4
{[%clk 0:02:45.1]} 11... c5 {[%clk 0:02:33.4]} 12. Nb3 {[%clk 0:02:37.7]} 12...
cxd4 {[%clk 0:02:33.9]} 13. Nxd4 {[%clk 0:02:37.7]} 13... Bd7 {[%clk 0:02:31.6]}
14. O-O {[%clk 0:02:37.6]} 14... Rc8 {[%clk 0:02:30]} 15. Qb3 {[%clk 0:02:30.5]}
15... Qb6 {[%clk 0:02:23]} 16. Qxb6 {[%clk 0:02:17.1]} 16... axb6 {[%clk
0:02:24.9]} 17. Rfd1 {[%clk 0:02:09.5]} 17... Rfd8 {[%clk 0:02:25.4]} 18. Rac1
{[%clk 0:02:06.5]} 18... Ne8 {[%clk 0:02:24.2]} 19. b3 {[%clk 0:02:04]} 19... e5
{[%clk 0:02:23.2]} 20. Nc2 {[%clk 0:01:58.8]} 20... f5 {[%clk 0:02:24.1]} 21. f3
{[%clk 0:01:50.6]} 21... f4 {[%clk 0:02:23.4]} 22. Bf2 {[%clk 0:01:49.9]} 22...
Bf5 {[%clk 0:02:24.2]} 23. Nb4 {[%clk 0:01:47.8]} 23... Bf8 {[%clk 0:02:19.7]}
24. Nd5 {[%clk 0:01:47.8]} 24... b5 {[%clk 0:02:13.6]} 25. Nb6 {[%clk
0:01:27.5]} 25... Rxd1+ {[%clk 0:02:08.8]} 26. Rxd1 {[%clk 0:01:29.4]} 26... Rc6
{[%clk 0:02:10.2]} 27. exf4 {[%clk 0:01:25.5]} 27... gxf4 {[%clk 0:01:59.1]} 28.
fxe4 {[%clk 0:01:17.8]} 28... Bxe4 {[%clk 0:01:58.7]} 29. cxb5 {[%clk
0:01:10.3]} 29... Rc2 {[%clk 0:01:56.4]} 30. Bc4+ {[%clk 0:01:11.3]} 30... Kg7
{[%clk 0:01:57.4]} 31. a4 {[%clk 0:01:00.7]} 31... Nf6 {[%clk 0:01:54.6]} 32.
Nd7 {[%clk 0:00:57.1]} 32... Ng4 {[%clk 0:01:52.7]} 33. Nxf8 {[%clk 0:00:53.5]}
33... Rxf2 {[%clk 0:01:49]} 34. Bf1 {[%clk 0:00:21.1]} 34... Kxf8 {[%clk
0:01:40.7]} 35. h3 {[%clk 0:00:22.2]} 35... Ne3 {[%clk 0:01:41.7]} 36. Kxf2
{[%clk 0:00:06.8]} 36... Nxd1+ {[%clk 0:01:42.5]} 37. Ke1 {[%clk 0:00:08.7]}
37... Ne3 {[%clk 0:01:42.7]} 38. Bc4 {[%clk 0:00:05.1]} 38... Nxc4 {[%clk
0:01:41.7]} 39. bxc4 {[%clk 0:00:07]} 39... b6 {[%clk 0:01:43.3]} 40. Kf2 {[%clk
0:00:06.2]} 40... Ke7 {[%clk 0:01:43.9]} 41. g3 {[%clk 0:00:04]} 41... Kd6
{[%clk 0:01:44.6]} 42. gxf4 {[%clk 0:00:04.6]} 42... exf4 {[%clk 0:01:46.5]} 0-1

[Event "*** Titled Tuesday 3|2 Blitz"]
[Site "Chess.com"]
[Date "2015.02.24"]
[Round "6"]
[White "CraiggoryC"]
[Black "bsmail"]
[Result "0-1"]
[WhiteElo "1970"]
[BlackElo "2101"]
[TimeControl "180+2"]
[EndTime "12:18:00 PST"]
[Termination "bsmail won by resignation"]

1. e4 {[%clk 0:03:00]} 1... c5 {[%clk 0:02:56.6]} 2. Nf3 {[%clk 0:03:00.9]} 2...
d6 {[%clk 0:02:57.2]} 3. d4 {[%clk 0:03:02.4]} 3... cxd4 {[%clk 0:02:58.9]} 4.
Nxd4 {[%clk 0:03:04]} 4... Nf6 {[%clk 0:03:00.5]} 5. Nc3 {[%clk 0:03:05.6]} 5...
g6 {[%clk 0:02:54.6]} 6. Be3 {[%clk 0:03:05]} 6... Bg7 {[%clk 0:02:55.5]} 7. f3
{[%clk 0:03:04.5]} 7... O-O {[%clk 0:02:56.3]} 8. Qd2 {[%clk 0:03:06]} 8... Nc6
{[%clk 0:02:57.6]} 9. O-O-O {[%clk 0:03:07.6]} 9... d5 {[%clk 0:02:59]} 10. Kb1
{[%clk 0:03:08.5]} 10... Nxd4 {[%clk 0:02:59.4]} 11. e5 {[%clk 0:03:09]} 11...
Nf5 {[%clk 0:03:00.6]} 12. exf6 {[%clk 0:03:07.8]} 12... exf6 {[%clk 0:03:02.5]}
13. Bc5 {[%clk 0:03:06.6]} 13... d4 {[%clk 0:03:03.9]} 14. Bxf8 {[%clk 0:03:06]}
14... Qxf8 {[%clk 0:03:05.8]} 15. Ne2 {[%clk 0:03:03.7]} 15... Ne3 {[%clk
0:02:57.2]} 16. Re1 {[%clk 0:02:54.3]} 16... Nc4 {[%clk 0:02:36.1]} 17. Qxd4
{[%clk 0:02:46]} 17... b5 {[%clk 0:02:37]} 18. Nc3 {[%clk 0:02:33.3]} 18... f5
{[%clk 0:02:26.8]} 19. Qd5 {[%clk 0:02:31.6]} 19... Be6 {[%clk 0:02:26]} 20.
Rxe6 {[%clk 0:02:09.3]} 20... Rd8 {[%clk 0:01:58.7]} 21. Bxc4 {[%clk 0:01:43.8]}
21... Rxd5 {[%clk 0:01:54.7]} 22. Bxd5 {[%clk 0:01:44.3]} 22... fxe6 {[%clk
0:01:55.3]} 23. Bxe6+ {[%clk 0:01:44.7]} 23... Kh8 {[%clk 0:01:56.6]} 24. Rd1
{[%clk 0:01:25.5]} 24... b4 {[%clk 0:01:38.1]} 25. Nd5 {[%clk 0:01:19.1]} 25...
h5 {[%clk 0:01:37]} 26. h4 {[%clk 0:00:47.5]} 26... Qd6 {[%clk 0:01:28.7]} 27.
Bf7 {[%clk 0:00:37.9]} 27... Qe5 {[%clk 0:01:24.5]} 28. c3 {[%clk 0:00:37.4]}
28... bxc3 {[%clk 0:01:21.9]} 29. Nxc3 {[%clk 0:00:36.3]} 29... Qf6 {[%clk
0:01:19.3]} 30. Bb3 {[%clk 0:00:34.5]} 30... Qxh4 {[%clk 0:01:19.4]} 31. a3
{[%clk 0:00:25.7]} 31... Qf2 {[%clk 0:01:13.9]} 32. Rd8+ {[%clk 0:00:24.4]}
32... Kh7 {[%clk 0:01:12.8]} 33. Rd7 {[%clk 0:00:20.3]} 33... Kh6 {[%clk
0:01:07.9]} 34. Bf7 {[%clk 0:00:15.6]} 34... Bxc3 {[%clk 0:00:44]} 35. bxc3
{[%clk 0:00:15]} 35... Qf1+ {[%clk 0:00:43.5]} 36. Kc2 {[%clk 0:00:14.6]} 36...
Qxg2+ {[%clk 0:00:44.6]} 37. Kb3 {[%clk 0:00:13.7]} 37... Qxf3 {[%clk
0:00:41.3]} 38. Rd6 {[%clk 0:00:14.5]} 38... Qb7+ {[%clk 0:00:42.2]} 0-1

[Event "*** Titled Tuesday 3|2 Blitz"]
[Site "Chess.com"]
[Date "2015.02.24"]
[Round "6"]
[White "GasconJR"]
[Black "petrpalachev"]
[Result "1-0"]
[WhiteElo "2271"]
[BlackElo "2391"]
[TimeControl "180+2"]
[EndTime "12:18:17 PST"]
[Termination "GasconJR won by resignation"]

1. e4 {[%clk 0:03:00]} 1... c6 {[%clk 0:02:58.2]} 2. d4 {[%clk 0:02:59.9]} 2...
d5 {[%clk 0:03:00.1]} 3. Nc3 {[%clk 0:03:01.6]} 3... dxe4 {[%clk 0:03:01.1]} 4.
Nxe4 {[%clk 0:03:03.3]} 4... Nd7 {[%clk 0:03:02.6]} 5. Ng5 {[%clk 0:03:02.5]}
5... Ngf6 {[%clk 0:03:03.9]} 6. Bd3 {[%clk 0:02:59.2]} 6... e6 {[%clk
0:03:05.1]} 7. N1f3 {[%clk 0:02:59.3]} 7... Bd6 {[%clk 0:03:06.6]} 8. Qe2 {[%clk
0:02:59.7]} 8... h6 {[%clk 0:03:08.1]} 9. Ne4 {[%clk 0:03:00.5]} 9... Nxe4
{[%clk 0:03:09.3]} 10. Qxe4 {[%clk 0:03:01.7]} 10... Qc7 {[%clk 0:03:10.7]} 11.
Qg4 {[%clk 0:03:01.4]} 11... Kf8 {[%clk 0:03:11.1]} 12. O-O {[%clk 0:02:46.7]}
12... Nf6 {[%clk 0:03:12.1]} 13. Qh4 {[%clk 0:02:47.1]} 13... b6 {[%clk
0:03:10.9]} 14. b3 {[%clk 0:02:38.7]} 14... Bb7 {[%clk 0:03:10]} 15. Bb2 {[%clk
0:02:39.6]} 15... Ke7 {[%clk 0:03:10.6]} 16. Rfe1 {[%clk 0:02:39.6]} 16... g5
{[%clk 0:03:07.1]} 17. Qh3 {[%clk 0:02:38.7]} 17... g4 {[%clk 0:02:56.3]} 18.
Qh4 {[%clk 0:02:39.8]} 18... gxf3 {[%clk 0:02:57.8]} 19. d5 {[%clk 0:02:41.4]}
19... Bxh2+ {[%clk 0:02:53.4]} 20. Kh1 {[%clk 0:02:20.1]} 20... fxg2+ {[%clk
0:02:54.1]} 21. Kxg2 {[%clk 0:02:20.9]} 21... Rhg8+ {[%clk 0:02:49.6]} 22. Kh1
{[%clk 0:02:22.1]} 22... Rg5 {[%clk 0:02:42.2]} 23. Bxf6+ {[%clk 0:02:12.7]}
23... Kxf6 {[%clk 0:02:21.5]} 24. Qxh6+ {[%clk 0:02:13]} 24... Rg6 {[%clk
0:02:22]} 25. Bxg6 {[%clk 0:02:13.8]} 25... Bf4 {[%clk 0:02:12]} 26. Qh7 {[%clk
0:01:56.1]} 26... cxd5 {[%clk 0:01:52.3]} 27. Rg1 {[%clk 0:01:14.9]} 27... fxg6
{[%clk 0:00:59.1]} 28. Rxg6+ {[%clk 0:01:05.6]} 28... Kf5 {[%clk 0:01:00.3]} 29.
Rg7+ {[%clk 0:01:04.7]} 29... Kf6 {[%clk 0:00:53.2]} 30. Qg6+ {[%clk 0:01:00.8]}
30... Ke5 {[%clk 0:00:54]} 31. Re1+ {[%clk 0:00:50.2]} 31... Kd6 {[%clk
0:00:50.6]} 32. Rxc7 {[%clk 0:00:37.2]} 32... Kxc7 {[%clk 0:00:42.7]} 33. Qf7+
{[%clk 0:00:37.3]} 33... Kc6 {[%clk 0:00:42.3]} 34. Qxf4 {[%clk 0:00:29.5]}
34... Rh8+ {[%clk 0:00:42.8]} 35. Kg1 {[%clk 0:00:30.1]} 35... Bc8 {[%clk
0:00:44.7]} 36. c4 {[%clk 0:00:28.3]} 36... Rg8+ {[%clk 0:00:45.8]} 37. Kf1
{[%clk 0:00:28.7]} 37... dxc4 {[%clk 0:00:46]} 38. Qxc4+ {[%clk 0:00:28.5]}
38... Kb7 {[%clk 0:00:47.5]} 39. Rc1 {[%clk 0:00:27.1]} 39... Ka8 {[%clk
0:00:48.2]} 40. Qxc8+ {[%clk 0:00:27.3]} 40... Rxc8 {[%clk 0:00:49]} 41. Rxc8+
{[%clk 0:00:28.4]} 41... Kb7 {[%clk 0:00:50.9]} 42. Re8 {[%clk 0:00:29.5]} 42...
Kc6 {[%clk 0:00:52.8]} 43. Rxe6+ {[%clk 0:00:31]} 43... Kb5 {[%clk 0:00:54.7]}
44. Rh6 {[%clk 0:00:32.5]} 44... a5 {[%clk 0:00:56.6]} 45. a3 {[%clk 0:00:32.5]}
45... Kc5 {[%clk 0:00:58.5]} 46. b4+ {[%clk 0:00:32.6]} 46... axb4 {[%clk
0:00:59.8]} 47. axb4+ {[%clk 0:00:34]} 47... Kxb4 {[%clk 0:01:01.7]} 48. Rxb6+
{[%clk 0:00:35]} 48... Kc5 {[%clk 0:01:03.6]} 49. Re6 {[%clk 0:00:36.5]} 49...
Kd5 {[%clk 0:01:05.5]} 50. Re1 {[%clk 0:00:37.8]} 50... Kd4 {[%clk 0:01:06.9]}
51. f4 {[%clk 0:00:39.4]} 1-0

[Event "*** Titled Tuesday 3|2 Blitz"]
[Site "Chess.com"]
[Date "2015.02.24"]
[Round "6"]
[White "9ShMat2"]
[Black "AnthonyWirig"]
[Result "1-0"]
[WhiteElo "2449"]
[BlackElo "2535"]
[TimeControl "180+2"]
[EndTime "12:18:38 PST"]
[Termination "9ShMat2 won by resignation"]

1. e4 {[%clk 0:03:00]} 1... g6 {[%clk 0:02:57.5]} 2. d4 {[%clk 0:03:00.5]} 2...
Bg7 {[%clk 0:02:59.1]} 3. Nc3 {[%clk 0:03:01.3]} 3... c6 {[%clk 0:03:00.4]} 4.
Bc4 {[%clk 0:02:58.5]} 4... d6 {[%clk 0:02:59.3]} 5. Nge2 {[%clk 0:02:55.9]}
5... Nf6 {[%clk 0:02:50.8]} 6. f3 {[%clk 0:02:52.6]} 6... d5 {[%clk 0:02:33]} 7.
Bb3 {[%clk 0:02:47.9]} 7... O-O {[%clk 0:02:32]} 8. e5 {[%clk 0:02:43.6]} 8...
Nfd7 {[%clk 0:02:31]} 9. O-O {[%clk 0:02:40]} 9... a5 {[%clk 0:02:03.6]} 10. a3
{[%clk 0:02:37.9]} 10... b5 {[%clk 0:02:03.8]} 11. Be3 {[%clk 0:02:34.8]} 11...
Nb6 {[%clk 0:02:01.5]} 12. Qd2 {[%clk 0:02:31.2]} 12... f6 {[%clk 0:01:56.3]}
13. Bh6 {[%clk 0:02:25.2]} 13... fxe5 {[%clk 0:01:51.2]} 14. Bxg7 {[%clk
0:02:23.4]} 14... Kxg7 {[%clk 0:01:53.1]} 15. dxe5 {[%clk 0:02:22.7]} 15... a4
{[%clk 0:01:54.2]} 16. Ba2 {[%clk 0:02:22.3]} 16... Nc4 {[%clk 0:01:51.1]} 17.
Bxc4 {[%clk 0:02:20.1]} 17... bxc4 {[%clk 0:01:53]} 18. Qd4 {[%clk 0:02:07.3]}
18... e6 {[%clk 0:01:41.2]} 19. Rae1 {[%clk 0:02:00.9]} 19... Nd7 {[%clk
0:01:41.8]} 20. Qe3 {[%clk 0:01:54.8]} 20... Qb6 {[%clk 0:01:33.6]} 21. Qxb6
{[%clk 0:01:44.7]} 21... Nxb6 {[%clk 0:01:35.5]} 22. Rf2 {[%clk 0:01:45.4]}
22... c5 {[%clk 0:01:31.6]} 23. Nb5 {[%clk 0:01:40.7]} 23... Bd7 {[%clk
0:01:26]} 24. Nd6 {[%clk 0:01:39]} 24... Rab8 {[%clk 0:01:18]} 25. c3 {[%clk
0:01:33.4]} 25... Bc6 {[%clk 0:01:13.4]} 26. g3 {[%clk 0:01:31.7]} 26... Nd7
{[%clk 0:01:14.9]} 27. Nf4 {[%clk 0:01:22.7]} 27... Rxf4 {[%clk 0:01:07.5]} 28.
gxf4 {[%clk 0:01:22.7]} 28... Rf8 {[%clk 0:01:09.2]} 29. f5 {[%clk 0:01:20.9]}
29... exf5 {[%clk 0:00:33.7]} 30. e6 {[%clk 0:01:14.2]} 30... Nf6 {[%clk
0:00:35]} 31. e7 {[%clk 0:01:09.4]} 31... Rb8 {[%clk 0:00:35.8]} 32. Re6 {[%clk
0:01:07.7]} 32... Bd7 {[%clk 0:00:33.6]} 33. Re5 {[%clk 0:01:05.6]} 33... d4
{[%clk 0:00:22]} 34. Rxc5 {[%clk 0:01:01.5]} 34... dxc3 {[%clk 0:00:20.9]} 35.
bxc3 {[%clk 0:01:03.4]} 35... Rb6 {[%clk 0:00:21.7]} 36. Rd2 {[%clk 0:01:00]}
36... f4 {[%clk 0:00:19.3]} 37. Ne4 {[%clk 0:00:56.4]} 37... Nxe4 {[%clk
0:00:15.7]} 38. Rxd7 {[%clk 0:00:57]} 38... Rb1+ {[%clk 0:00:16.1]} 39. Kg2
{[%clk 0:00:53.8]} 39... Rb2+ {[%clk 0:00:17.5]} 40. Kh3 {[%clk 0:00:41.6]}
40... Nf2+ {[%clk 0:00:09.8]} 41. Kh4 {[%clk 0:00:42.3]} 41... Kh6 {[%clk
0:00:05.3]} 1-0